fUST/lending_fUST_20240726
["ID","MTS","AMOUNT","RATE_DAILY","PERIOD"]
[333190143,1721931047818,-500.0,0.00013698,2]
[333190144,1721931047827,-739.79,0.00013698,2]
[333190145,1721931047840,-500.0,0.00013698,2]
[333190146,1721931047849,-170.0,0.00013698,2]
[333190147,1721931047862,-320.504912,0.00013698,2]
[333190148,1721931047872,-958.15,0.00013698,2]
[333190149,1721931047881,-500.0,0.00013698,2]
[333190150,1721931047891,-320.504912,0.00013698,2]
[333190151,1721931047904,-500.0,0.00013698,2]
[333190152,1721931047915,-198.97929817,0.00013698,2]
[333190153,1721931047926,-502.53453976,0.00013698,2]
[333190154,1721931047936,-500.0,0.00013698,2]
[333190155,1721931047945,-500.0,0.00013698,2]
[333190156,1721931047956,-1009.46,0.00013698,2]
[333190157,1721931047966,-500.0,0.00013698,2]
[333190158,1721931047976,-500.0,0.00013698,2]
[333190159,1721931047985,-500.0,0.00013698,2]
[333190160,1721931047996,-500.0,0.00013698,2]
[333190161,1721931048005,-500.0,0.00013698,2]
[333190162,1721931048015,-500.0,0.00013698,2]
[333190163,1721931048025,-500.0,0.00013698,2]
[333190164,1721931048034,-876.72,0.00013698,2]
[333190165,1721931048044,-602.31,0.00013698,2]
[333190166,1721931048053,-536.8530728,0.00013698,2]
[333190167,1721931048063,-502.56433682,0.00013698,2]
[333190168,1721931048073,-500.0,0.00013698,2]
[333190169,1721931048082,-500.0,0.00013698,2]
[333190170,1721931048091,-500.0,0.00013698,2]
[333190171,1721931048101,-663.6,0.00013698,2]
[333190172,1721931048111,-500.0,0.00013698,2]
[333190173,1721931048120,-500.0,0.00013698,2]
[333190174,1721931048130,-500.0,0.00013698,2]
[333190175,1721931048139,-500.0,0.00013698,2]
[333190176,1721931048154,-506.01830379,0.00013698,2]
[333190177,1721931048164,-500.0,0.00013698,2]
[333190178,1721931048174,-500.0,0.00013698,2]
[333190179,1721931048184,-500.0,0.00013698,2]
[333190180,1721931048194,-501.07115651,0.00013698,2]
[333190181,1721931048204,-500.0,0.00013698,2]
[333190182,1721931048435,-500.0,0.00013698,2]
[333190183,1721931048445,-500.0,0.00013698,2]
[333190184,1721931048455,-501.72351457,0.00013698,2]
[333190185,1721931048466,-500.0,0.00013698,2]
[333190186,1721931048475,-500.0,0.00013698,2]
[333190187,1721931048485,-500.0,0.00013698,2]
[333190188,1721931048494,-525.55842714,0.00013698,2]
[333190189,1721931048503,-695.74,0.00013698,2]
[333190190,1721931048513,-628.42,0.00013698,2]
[333190191,1721931048523,-502.22351897,0.00013698,2]
[333190192,1721931048532,-500.0,0.00013698,2]
[333190193,1721931048540,-500.0,0.00013698,2]
[333190194,1721931048550,-500.0,0.00013698,2]
[333190195,1721931048560,-500.0,0.00013698,2]
[333190196,1721931048569,-500.0,0.00013698,2]
[333190197,1721931048578,-500.0,0.00013698,2]
[333190198,1721931048587,-500.0,0.00013698,2]
[333190199,1721931048597,-1249.69,0.00013698,2]
[333190200,1721931048606,-500.0,0.00013698,2]
[333190201,1721931048615,-500.0,0.00013698,2]
[333190202,1721931048625,-500.0,0.00013698,2]
[333190203,1721931048634,-500.0,0.00013698,2]
[333190204,1721931048644,-500.0,0.00013698,2]
[333190205,1721931048655,-500.0,0.00013698,2]
[333190206,1721931048664,-500.0,0.00013698,2]
[333190207,1721931048674,-500.0,0.00013698,2]
[333190208,1721931048684,-819.19,0.00013698,2]
[333190209,1721931048694,-500.0,0.00013698,2]
[333190210,1721931048703,-500.0,0.00013698,2]
[333190211,1721931048712,-1308.36,0.00013698,2]
[333190212,1721931048721,-500.0,0.00013698,2]
[333190213,1721931048731,-1310.28,0.00013698,2]
[333190214,1721931048740,-184.67716535,0.00013698,2]
[333190215,1721931048751,-501.53988826,0.00013698,2]
[333190216,1721931048761,-500.0,0.00013698,2]
[333190217,1721931048770,-500.0,0.00013698,2]
[333190218,1721931048780,-927.14,0.00013698,2]
[333190219,1721931048791,-500.0,0.00013698,2]
[333190220,1721931048801,-500.0,0.00013698,2]
[333190221,1721931048811,-844.66,0.00013698,2]
[333190222,1721931048821,-588.69,0.00013698,2]
[333190223,1721931048836,-451.32190258,0.00013698,2]
[333190224,1721931048846,-1561.37,0.00013698,2]
[333190225,1721931048856,-500.0,0.00013698,2]
[333190226,1721931048865,-500.0,0.00013698,2]
[333190227,1721931048876,-500.0,0.00013698,2]
[333190228,1721931048887,-500.0,0.00013698,2]
[333190229,1721931048898,-792.7,0.00013698,2]
[333190230,1721931048908,-500.0,0.00013698,2]
[333190231,1721931048922,-778.19,0.00013698,2]
[333190232,1721931048931,-502.14441121,0.00013698,2]
[333190233,1721931048942,-500.0,0.00013698,2]
[333190234,1721931048952,-643.77653392,0.00013698,2]
[333190235,1721931048963,-500.0,0.00013698,2]
[333190236,1721931048973,-1207.85,0.00013698,2]
[333190237,1721931048983,-473.58590118,0.00013698,2]
[333190238,1721931048993,-637.6,0.00013698,2]
[333190239,1721931049003,-363.12720465,0.00013698,2]
[333190240,1721931049013,-500.0,0.00013698,2]
[333190241,1721931049023,-500.0,0.00013698,2]
[333190242,1721931049033,-500.0,0.00013698,2]
[333190243,1721931049043,-500.0,0.00013698,2]
[333190244,1721931049053,-500.0,0.00013698,2]
[333190245,1721931049063,-1245.58,0.00013698,2]
[333190246,1721931049073,-500.0,0.00013698,2]
[333190247,1721931049083,-309.18495205,0.00013698,2]
[333190248,1721931049093,-500.0,0.00013698,2]
[333190249,1721931049103,-500.0,0.00013698,2]
[333190250,1721931049113,-500.0,0.00013698,2]
[333190251,1721931049123,-519.08,0.00013698,2]
[333190252,1721931049133,-500.0,0.00013698,2]
[333190253,1721931049144,-500.0,0.00013698,2]
[333190254,1721931049154,-241.819556,0.00013698,2]
[333190255,1721931049164,-565.87,0.00013698,2]
[333190256,1721931049173,-500.0,0.00013698,2]
[333190257,1721931049182,-500.0,0.00013698,2]
[333190258,1721931049193,-500.0,0.00013698,2]
[333190259,1721931049203,-500.0,0.00013698,2]
[333190260,1721931049212,-500.0,0.00013698,2]
[333190261,1721931049222,-500.0,0.00013698,2]
[333190262,1721931049232,-650.68,0.00013698,2]
[333190263,1721931049242,-500.0,0.00013698,2]
[333190264,1721931049251,-500.0,0.00013698,2]
[333190265,1721931049261,-500.0,0.00013698,2]
[333190266,1721931049271,-500.0,0.00013698,2]
[333190267,1721931049280,-500.0,0.00013698,2]
[333190268,1721931049290,-500.0,0.00013698,2]
[333190269,1721931049301,-533.67,0.00013698,2]
[333190270,1721931049311,-500.0,0.00013698,2]
[333190271,1721931049322,-1169.62,0.00013698,2]
[333190272,1721931049332,-536.79995882,0.00013698,2]
[333190273,1721931049343,-504.88047884,0.00013698,2]
[333190274,1721931049353,-536.23,0.00013698,2]
[333190275,1721931049364,-530.02,0.00013698,2]
[333190276,1721931049374,-151.0,0.00013698,2]
[333190277,1721931049385,-934.43,0.00013698,2]
[333190278,1721931049395,-151.0,0.00013698,2]
[333190279,1721931049406,-500.0,0.00013698,2]
[333190280,1721931049417,-1064.49,0.00013698,2]
[333190281,1721931049427,-500.0,0.00013698,2]
[333190282,1721931049436,-500.0,0.00013698,2]
[333190283,1721931049447,-500.0,0.00013698,2]
[333190284,1721931049457,-500.0,0.00013698,2]
[333190285,1721931049467,-500.0,0.00013698,2]
[333190286,1721931049477,-500.0,0.00013698,2]
[333190287,1721931049487,-1150.44,0.00013698,2]
[333190288,1721931049497,-500.0,0.00013698,2]
[333190289,1721931049506,-500.0,0.00013698,2]
[333190290,1721931049515,-500.0,0.00013698,2]
[333190291,1721931049525,-500.0,0.00013698,2]
[333190292,1721931049535,-500.0,0.00013698,2]
[333190293,1721931049546,-500.0,0.00013698,2]
[333190294,1721931049556,-500.0,0.00013698,2]
[333190295,1721931049566,-847.0,0.00013698,2]
[333190296,1721931049576,-500.0,0.00013698,2]
[333190297,1721931049586,-791.4,0.00013698,2]
[333190298,1721931049596,-331.28129,0.00013698,2]
[333190299,1721931049605,-500.0,0.00013698,2]
[333190300,1721931049615,-1018.83,0.00013698,2]
[333190301,1721931049625,-500.0,0.00013698,2]
[333190302,1721931049636,-500.0,0.00013698,2]
[333190303,1721931049648,-331.28129,0.00013698,2]
[333190304,1721931049659,-500.0,0.00013698,2]
[333190305,1721931049670,-500.0,0.00013698,2]
[333190306,1721931049681,-830.85,0.00013698,2]
[333190307,1721931049690,-151.0,0.00013698,2]
[333190308,1721931049701,-500.0,0.00013698,2]
[333190309,1721931049712,-1102.94,0.00013698,2]
[333190310,1721931049723,-500.0,0.00013698,2]
[333190311,1721931049733,-500.0,0.00013698,2]
[333190312,1721931049743,-500.0,0.00013698,2]
[333190313,1721931049753,-575.57,0.00013698,2]
[333190314,1721931049763,-765.27,0.00013698,2]
[333190315,1721931049774,-151.0,0.00013698,2]
[333190316,1721931049785,-1019.86,0.00013698,2]
[333190317,1721931049795,-151.0,0.00013698,2]
[333190318,1721931049805,-500.0,0.00013698,2]
[333190319,1721931049817,-4470.99,0.00013698,2]
[333190320,1721931049828,-4470.99,0.00013698,2]
[333190321,1721931049850,-4470.99,0.00013698,2]
[333190322,1721931049864,-4470.99,0.00013698,2]
[333190323,1721931049875,-4470.99,0.00013698,2]
[333190324,1721931049886,-4470.99,0.00013698,2]
[333190325,1721931049898,-4470.99,0.00013698,2]
[333190326,1721931049909,-4470.99,0.00013698,2]
[333190327,1721931049922,-4470.99,0.00013698,2]
[333190328,1721931049933,-500.0,0.00013698,2]
[333190329,1721931049944,-4470.99,0.00013698,2]
[333190330,1721931049955,-4470.99,0.00013698,2]
[333190331,1721931049967,-4470.99,0.00013698,2]
[333190332,1721931049977,-4470.99,0.00013698,2]
[333190333,1721931049987,-4470.99,0.00013698,2]
[333190334,1721931049997,-4470.99,0.00013698,2]
[333190335,1721931050008,-4470.99,0.00013698,2]
[333190336,1721931050019,-4470.99,0.00013698,2]
[333190337,1721931050031,-4470.99,0.00013698,2]
[333190338,1721931050042,-4470.99,0.00013698,2]
[333190339,1721931050053,-4470.99,0.00013698,2]
[333190340,1721931050064,-533.79,0.00013698,2]
[333190341,1721931050075,-4470.99,0.00013698,2]
[333190342,1721931050085,-4470.99,0.00013698,2]
[333190343,1721931050096,-4470.99,0.00013698,2]
[333190344,1721931050108,-4471.10852401,0.00013698,2]
[333190345,1721931050118,-867.66,0.00013698,2]
[333190346,1721931050129,-500.0,0.00013698,2]
[333190347,1721931050140,-531.05614074,0.00013698,2]
[333190348,1721931050155,-500.0,0.00013698,2]
[333190349,1721931050166,-500.0,0.00013698,2]
[333190350,1721931050177,-500.0,0.00013698,2]
[333190351,1721931050191,-604.75,0.00013698,2]
[333190352,1721931050202,-500.0,0.00013698,2]
[333190353,1721931050212,-151.0,0.00013698,2]
[333190354,1721931050221,-521.26,0.00013698,2]
[333190355,1721931050231,-151.0,0.00013698,2]
[333190356,1721931050242,-2199.43,0.00013698,2]
[333190357,1721931050252,-428.85628937,0.00013698,2]
[333190358,1721931050263,-500.0,0.00013698,2]
[333190359,1721931050273,-500.0,0.00013698,2]
[333190360,1721931050282,-500.0,0.00013698,2]
[333190361,1721931050292,-500.0,0.00013698,2]
[333190362,1721931050302,-503.15214971,0.00013698,2]
[333190363,1721931050312,-500.0,0.00013698,2]
[333190364,1721931050323,-826.53,0.00013698,2]
[333190365,1721931050334,-2013.94,0.00013698,2]
[333190366,1721931050343,-500.0,0.00013698,2]
[333190367,1721931050354,-500.0,0.00013698,2]
[333190368,1721931050365,-1897.6,0.00013698,2]
[333190369,1721931050376,-500.0,0.00013698,2]
[333190370,1721931050386,-500.0,0.00013698,2]
[333190371,1721931050399,-500.0,0.00013698,2]
[333190372,1721931050409,-1006.17,0.00013698,2]
[333190373,1721931050419,-500.0,0.00013698,2]
[333190374,1721931050429,-500.0,0.00013698,2]
[333190375,1721931050439,-1006.87,0.00013698,2]
[333190376,1721931050449,-1774.58,0.00013698,2]
[333190377,1721931050459,-500.0,0.00013698,2]
[333190378,1721931050468,-500.0,0.00013698,2]
[333190379,1721931050479,-500.0,0.00013698,2]
[333190380,1721931050489,-2659.08,0.00013698,2]
[333190381,1721931050499,-151.0,0.00013698,2]
[333190382,1721931050509,-505.35601644,0.00013698,2]
[333190383,1721931050518,-1517.91,0.00013698,2]
[333190384,1721931050528,-500.0,0.00013698,2]
[333190385,1721931050538,-2835.69,0.00013698,2]
[333190386,1721931050548,-372.862802,0.00013698,2]
[333190387,1721931050558,-694.9,0.00013698,2]
[333190388,1721931050568,-372.862802,0.00013698,2]
[333190389,1721931050578,-500.0,0.00013698,2]
[333190390,1721931050588,-500.0,0.00013698,2]
[333190391,1721931050598,-151.0,0.00013698,2]
[333190392,1721931050608,-500.0,0.00013698,2]
[333190393,1721931050617,-151.0,0.00013698,2]
[333190394,1721931050627,-500.0,0.00013698,2]
[333190395,1721931050637,-500.0,0.00013698,2]
[333190396,1721931050651,-500.0,0.00013698,2]
[333190397,1721931050660,-501.93010466,0.00013698,2]
[333190398,1721931050669,-995.23,0.00013698,2]
[333190399,1721931050679,-501.67718817,0.00013698,2]
[333190400,1721931050688,-365.00000002,0.00013698,2]
[333190401,1721931050697,-1627.17,0.00013698,2]
[333190402,1721931050707,-864.05,0.00013698,2]
[333190403,1721931050717,-151.0,0.00013698,2]
[333190404,1721931050727,-500.0,0.00013698,2]
[333190405,1721931050736,-10076.05,0.00013698,2]
[333190406,1721931050746,-500.0,0.00013698,2]
[333190407,1721931050755,-500.0,0.00013698,2]
[333190408,1721931050765,-4258.11,0.00013698,2]
[333190409,1721931050775,-500.0,0.00013698,2]
[333190410,1721931050784,-500.0,0.00013698,2]
[333190411,1721931050794,-6811.63,0.00013698,2]
[333190412,1721931050804,-787.92,0.00013698,2]
[333190413,1721931050813,-500.0,0.00013698,2]
[333190414,1721931050824,-1908.57,0.00013698,2]
[333190415,1721931050837,-500.0,0.00013698,2]
[333190416,1721931050846,-1810.53,0.00013698,2]
[333190417,1721931050856,-500.0,0.00013698,2]
[333190418,1721931050865,-500.0,0.00013698,2]
[333190419,1721931050875,-1030.22,0.00013698,2]
[333190420,1721931050884,-1383.61,0.00013698,2]
[333190421,1721931050893,-1700.32,0.00013698,2]
[333190422,1721931050905,-500.0,0.00013698,2]
[333190423,1721931050914,-502.74,0.00013698,2]
[333190424,1721931050924,-500.0,0.00013698,2]
[333190425,1721931050934,-500.0,0.00013698,2]
[333190426,1721931050943,-500.0,0.00013698,2]
[333190427,1721931050954,-280.676298,0.00013698,2]
[333190428,1721931050964,-2514.58,0.00013698,2]
[333190429,1721931050974,-500.0,0.00013698,2]
[333190430,1721931050983,-8543.81,0.00013698,2]
[333190431,1721931050993,-2514.58,0.00013698,2]
[333190432,1721931051003,-2514.58,0.00013698,2]
[333190433,1721931051012,-2514.58,0.00013698,2]
[333190434,1721931051022,-500.0,0.00013698,2]
[333190435,1721931051031,-2514.58,0.00013698,2]
[333190436,1721931051041,-2514.58,0.00013698,2]
[333190437,1721931051050,-500.0,0.00013698,2]
[333190438,1721931051059,-2514.58,0.00013698,2]
[333190439,1721931051069,-500.0,0.00013698,2]
[333190440,1721931051078,-2514.58,0.00013698,2]
[333190441,1721931051087,-2514.58,0.00013698,2]
[333190442,1721931051097,-2514.58,0.00013698,2]
[333190443,1721931051106,-2514.58,0.00013698,2]
[333190444,1721931051115,-2514.58,0.00013698,2]
[333190445,1721931051125,-500.0,0.00013698,2]
[333190446,1721931051135,-2514.58,0.00013698,2]
[333190447,1721931051147,-500.0,0.00013698,2]
[333190448,1721931051158,-2514.58,0.00013698,2]
[333190449,1721931051167,-2514.58,0.00013698,2]
[333190450,1721931051176,-2514.58,0.00013698,2]
[333190451,1721931051185,-2514.58,0.00013698,2]
[333190452,1721931051195,-2514.58,0.00013698,2]
[333190453,1721931051204,-2514.58,0.00013698,2]
[333190454,1721931051213,-2514.58,0.00013698,2]
[333190455,1721931051222,-500.0,0.00013698,2]
[333190456,1721931051232,-2514.58,0.00013698,2]
[333190457,1721931051241,-2514.58,0.00013698,2]
[333190458,1721931051250,-2514.58,0.00013698,2]
[333190459,1721931051259,-2514.78785508,0.00013698,2]
[333190460,1721931051268,-500.0,0.00013698,2]
[333190461,1721931051277,-500.0,0.00013698,2]
[333190462,1721931051286,-500.0,0.00013698,2]
[333190463,1721931051296,-151.0,0.00013698,2]
[333190464,1721931051306,-500.0,0.00013698,2]
[333190465,1721931051316,-500.0,0.00013698,2]
[333190466,1721931051325,-887.29,0.00013698,2]
[333190467,1721931051335,-500.0,0.00013698,2]
[333190468,1721931051344,-500.0,0.00013698,2]
[333190469,1721931051353,-500.0,0.00013698,2]
[333190470,1721931051363,-500.0,0.00013698,2]
[333190471,1721931051372,-151.0,0.00013698,2]
[333190472,1721931051382,-500.0,0.00013698,2]
[333190473,1721931051391,-1106.02,0.00013698,2]
[333190474,1721931051405,-500.0,0.00013698,2]
[333190475,1721931051414,-500.0,0.00013698,2]
[333190476,1721931051424,-445.9911003,0.00013698,2]
[333190477,1721931051433,-500.0,0.00013698,2]
[333190478,1721931051443,-500.0,0.00013698,2]
[333190479,1721931051452,-513.14231537,0.00013698,2]
[333190480,1721931051462,-500.0,0.00013698,2]
[333190481,1721931051471,-1814.13,0.00013698,2]
[333190482,1721931051481,-500.0,0.00013698,2]
[333190483,1721931051490,-672.42,0.00013698,2]
[333190484,1721931051501,-616.66,0.00013698,2]
[333190485,1721931051511,-500.0,0.00013698,2]
[333190486,1721931051520,-784.77,0.00013698,2]
[333190487,1721931051530,-500.0,0.00013698,2]
[333190488,1721931051540,-542.16921567,0.00013698,2]
[333190489,1721931051549,-909.05,0.00013698,2]
[333190490,1721931051559,-500.0,0.00013698,2]
[333190491,1721931051569,-151.0,0.00013698,2]
[333190492,1721931051579,-983.58,0.00013698,2]
[333190493,1721931051592,-4954.07,0.00013698,2]
[333190494,1721931051602,-500.0,0.00013698,2]
[333190495,1721931051612,-500.0,0.00013698,2]
[333190496,1721931051622,-500.0,0.00013698,2]
[333190497,1721931051632,-500.0,0.00013698,2]
[333190498,1721931051642,-500.0,0.00013698,2]
[333190499,1721931051654,-500.0,0.00013698,2]
[333190500,1721931051664,-500.0,0.00013698,2]
[333190501,1721931051673,-500.0,0.00013698,2]
[333190502,1721931051683,-500.0,0.00013698,2]
[333190503,1721931051692,-500.0,0.00013698,2]
[333190504,1721931051701,-500.0,0.00013698,2]
[333190505,1721931051710,-486.68081897,0.00013698,2]
[333190506,1721931051720,-500.0,0.00013698,2]
[333190507,1721931051729,-1328.52,0.00013698,2]
[333190508,1721931051738,-502.20136358,0.00013698,2]
[333190509,1721931051748,-500.0,0.00013698,2]
[333190510,1721931051757,-1406.23,0.00013698,2]
[333190511,1721931051766,-500.0,0.00013698,2]
[333190512,1721931051775,-500.0,0.00013698,2]
[333190513,1721931051785,-500.0,0.00013698,2]
[333190514,1721931051794,-500.0,0.00013698,2]
[333190515,1721931051803,-872.91,0.00013698,2]
[333190516,1721931051812,-500.0,0.00013698,2]
[333190517,1721931051821,-1478.62,0.00013698,2]
[333190518,1721931051832,-1562.6,0.00013698,2]
[333190519,1721931051844,-500.0,0.00013698,2]
[333190520,1721931051854,-500.0,0.00013698,2]
[333190521,1721931051863,-151.0,0.00013698,2]
[333190522,1721931051872,-739.37,0.00013698,2]
[333190523,1721931051882,-500.0,0.00013698,2]
[333190524,1721931051892,-3164.36,0.00013698,2]
[333190525,1721931051902,-500.0,0.00013698,2]
[333190526,1721931051913,-500.0,0.00013698,2]
[333190527,1721931051922,-151.0,0.00013698,2]
[333190528,1721931051931,-199.285594,0.00013698,2]
[333190529,1721931051940,-879.44,0.00013698,2]
[333190530,1721931051949,-508.77650918,0.00013698,2]
[333190531,1721931051958,-500.0,0.00013698,2]
[333190532,1721931051967,-500.0,0.00013698,2]
[333190533,1721931051976,-199.285594,0.00013698,2]
[333190534,1721931051985,-1692.12,0.00013698,2]
[333190535,1721931051995,-541.52978121,0.00013698,2]
[333190536,1721931052004,-500.0,0.00013698,2]
[333190537,1721931052013,-500.0,0.00013698,2]
[333190538,1721931052023,-500.0,0.00013698,2]
[333190539,1721931052032,-151.0,0.00013698,2]
[333190540,1721931052041,-1068.33,0.00013698,2]
[333190541,1721931052050,-500.0,0.00013698,2]
[333190542,1721931052060,-500.0,0.00013698,2]
[333190543,1721931052069,-500.0,0.00013698,2]
[333190544,1721931052077,-500.0,0.00013698,2]
[333190545,1721931052086,-500.0,0.00013698,2]
[333190546,1721931052095,-500.0,0.00013698,2]
[333190547,1721931052104,-2637.13,0.00013698,2]
[333190548,1721931052113,-500.0,0.00013698,2]
[333190549,1721931052279,-500.0,0.00013698,2]
[333190550,1721931052295,-500.0,0.00013698,2]
[333190551,1721931052315,-1293.26,0.00013698,2]
[333190552,1721931052337,-500.0,0.00013698,2]
[333190553,1721931052358,-504.18,0.00013698,2]
[333190554,1721931052381,-151.0,0.00013698,2]
[333190555,1721931052405,-500.0,0.00013698,2]
[333190556,1721931052429,-1650.85,0.00013698,2]
[333190557,1721931052450,-581.01,0.00013698,2]
[333190558,1721931052467,-500.0,0.00013698,2]
[333190559,1721931052476,-500.0,0.00013698,2]
[333190560,1721931052485,-500.0,0.00013698,2]
[333190561,1721931052495,-500.0,0.00013698,2]
[333190562,1721931052504,-151.0,0.00013698,2]
[333190563,1721931052513,-500.0,0.00013698,2]
[333190564,1721931052522,-1024.93,0.00013698,2]
[333190565,1721931052531,-500.0,0.00013698,2]
[333190566,1721931052540,-2897.63,0.00013698,2]
[333190567,1721931052550,-500.0,0.00013698,2]
[333190568,1721931052559,-500.0,0.00013698,2]
[333190569,1721931052568,-500.0,0.00013698,2]
[333190570,1721931052578,-500.0,0.00013698,2]
[333190571,1721931052587,-599.83755214,0.00013698,2]
[333190572,1721931052596,-500.0,0.00013698,2]
[333190573,1721931052605,-500.0,0.00013698,2]
[333190574,1721931052613,-500.0,0.00013698,2]
[333190575,1721931052623,-500.0,0.00013698,2]
[333190576,1721931052632,-500.0,0.00013698,2]
[333190577,1721931052641,-500.0,0.00013698,2]
[333190578,1721931052652,-500.0,0.00013698,2]
[333190579,1721931052661,-500.0,0.00013698,2]
[333190580,1721931052670,-552.72444384,0.00013698,2]
[333190581,1721931052680,-500.0,0.00013698,2]
[333190582,1721931052688,-500.0,0.00013698,2]
[333190583,1721931052697,-500.0,0.00013698,2]
[333190584,1721931052706,-500.0,0.00013698,2]
[333190585,1721931052715,-500.0,0.00013698,2]
[333190586,1721931052724,-500.0,0.00013698,2]
[333190587,1721931052733,-500.0,0.00013698,2]
[333190588,1721931052741,-500.0,0.00013698,2]
[333190589,1721931052751,-306.66720861,0.00013698,2]
[333190590,1721931052760,-500.0,0.00013698,2]
[333190591,1721931052770,-500.0,0.00013698,2]
[333190592,1721931052779,-208.58012271,0.00013698,2]
[333190593,1721931052788,-1463.63,0.00013698,2]
[333190594,1721931052797,-500.0,0.00013698,2]
[333190595,1721931052806,-500.0,0.00013698,2]
[333190596,1721931052815,-500.0,0.00013698,2]
[333190597,1721931052824,-500.0,0.00013698,2]
[333190598,1721931052835,-500.0,0.00013698,2]
[333190599,1721931052846,-500.0,0.00013698,2]
[333190600,1721931052855,-500.0,0.00013698,2]
[333190601,1721931052864,-500.0,0.00013698,2]
[333190602,1721931052874,-775.42,0.00013698,2]
[333190603,1721931052883,-500.0,0.00013698,2]
[333190604,1721931052892,-500.0,0.00013698,2]
[333190605,1721931052902,-500.0,0.00013698,2]
[333190606,1721931052911,-500.0,0.00013698,2]
[333190607,1721931052921,-995.83,0.00013698,2]
[333190608,1721931052931,-463.67819308,0.00013698,2]
[333190609,1721931052940,-500.0,0.00013698,2]
[333190610,1721931052950,-263.0825339,0.00013698,2]
[333190611,1721931052960,-500.0,0.00013698,2]
[333190612,1721931052969,-151.0,0.00013698,2]
[333190613,1721931052978,-635.31,0.00013698,2]
[333190614,1721931052987,-500.0,0.00013698,2]
[333190615,1721931052996,-2169.424159,0.00013699,2]
[333190616,1721931053006,-3000.0,0.00013699,2]
[333190617,1721931053015,-621.89914436,0.00013781,2]
[333190618,1721931053024,-913.19407576,0.00013854,2]
[333190619,1721931053033,-151.0,0.00013943,2]
[333190620,1721931053043,-151.0,0.00013943,2]
[333190621,1721931053052,-1508.1254373,0.00013944,2]
[333190622,1721931053061,-86146.63418011,0.00013954,2]
[333190623,1721931053070,-151.0,0.00013954,2]
[333190624,1721931053079,-151.0,0.00013954,2]
[333190625,1721931053090,-976.36109,0.00013954,2]
[333190626,1721931053098,-976.36109,0.00013954,2]
[333190627,1721931053107,-151.0,0.00013954,2]
[333190628,1721931053116,-320.504912,0.00013954,2]
[333190629,1721931053125,-320.504912,0.00013954,2]
[333190630,1721931053135,-331.28129,0.00013954,2]
[333190631,1721931053145,-331.28129,0.00013954,2]
[333190632,1721931053154,-151.0,0.00013954,2]
[333190633,1721931053163,-151.0,0.00013954,2]
[333190634,1721931053172,-372.862802,0.00013954,2]
[333190635,1721931053181,-372.862802,0.00013954,2]
[333190636,1721931053190,-151.0,0.00013954,2]
[333190637,1721931053199,-151.0,0.00013954,2]
[333190638,1721931053208,-151.0,0.00013954,2]
[333190639,1721931053217,-151.0,0.00013954,2]
[333190640,1721931053226,-151.0,0.00013954,2]
[333190641,1721931053235,-228.140165,0.00013954,2]
[333190642,1721931053244,-199.285594,0.00013954,2]